fUSD/lending_fUSD_20260309
["ID","MTS","AMOUNT","RATE_DAILY","PERIOD"]
[408037044,1773064243209,-150.0,0.0001972,2]
[408037045,1773064243219,-150.0,0.0001972,2]
[408037046,1773064243228,-150.0,0.0001972,2]
[408037047,1773064243237,-259.0,0.0001972,2]
[408037048,1773064243247,-269.11907877,0.00019726,2]
[408037049,1773064243256,-568.0,0.00019727,2]
[408037050,1773064243265,-500.0,0.00019727,2]
[408037051,1773064243275,-500.0,0.00019727,2]
[408037052,1773064243284,-1079.0,0.00019727,2]
[408037053,1773064243293,-473.0,0.00019727,2]
[408037054,1773064243302,-500.0,0.00019727,2]
[408037055,1773064243311,-500.0,0.00019727,2]
[408037056,1773064243320,-479.0,0.00019727,2]
[408037057,1773064243330,-500.0,0.00019727,2]
[408037058,1773064243339,-1198.0,0.00019727,2]
[408037059,1773064243348,-500.0,0.00019727,2]
[408037060,1773064243357,-150.0,0.00019727,2]
[408037061,1773064243366,-500.0,0.00019727,2]
[408037062,1773064243375,-152.0,0.0001973,6]
[408037063,1773064243384,-2074.37954879,0.0001973,2]
[408037064,1773064243394,-184.22758356,0.00019734,2]
[408037065,1773064243403,-500.0,0.00019739,2]
[408037066,1773064243412,-500.0,0.00019739,2]
[408037067,1773064243422,-568.0,0.00019739,2]
[408037068,1773064243431,-500.0,0.00019739,2]
[408037069,1773064243440,-250.0,0.00019739,2]
[408037070,1773064243449,-2152.66118846,0.00019743,2]
[408037071,1773064243458,-250.0,0.00019753,2]
[408037072,1773064243468,-2166.62903121,0.00019753,2]
[408037073,1773064243478,-2074.37954879,0.00019773,2]
[408037074,1773064243487,-568.0,0.00019782,2]
[408037075,1773064243501,-500.0,0.00019782,2]
[408037076,1773064243518,-500.0,0.00019782,2]
[408037077,1773064243528,-1079.0,0.00019782,2]
[408037078,1773064243538,-473.0,0.00019782,2]
[408037079,1773064243548,-500.0,0.00019782,2]
[408037080,1773064243557,-500.0,0.00019782,2]
[408037081,1773064243566,-479.0,0.00019782,2]
[408037082,1773064243576,-500.0,0.00019782,2]
[408037083,1773064243586,-1198.0,0.00019782,2]
[408037084,1773064243595,-500.0,0.00019782,2]
[408037085,1773064243604,-179.08949688,0.00019782,2]
[408037086,1773064243614,-500.0,0.00019782,2]
[408037087,1773064243623,-172.84,0.00019784,2]
[408037088,1773064243633,-500.0,0.00019793,2]
[408037089,1773064243642,-500.0,0.00019793,2]
[408037090,1773064243651,-608.31593509,0.00019794,2]
[408037091,1773064243660,-164.57090824,0.00019794,2]
[408037092,1773064243669,-568.0,0.00019794,2]
[408037093,1773064243679,-500.0,0.00019794,2]
[408037094,1773064243688,-331.0,0.00019794,2]
[408037095,1773064243698,-250.0,0.00019794,2]
[408037096,1773064243710,-3067.51,0.00019794,2]
[408037097,1773064243720,-3067.51,0.00019794,2]
[408037098,1773064243810,-3067.51,0.00019794,2]
[408037099,1773064243821,-3067.51,0.00019794,2]
[408037100,1773064243830,-3398.27,0.00019794,2]
[408037101,1773064243839,-151.0,0.00019795,2]
[408037102,1773064243849,-309.85733071,0.00019797,2]
[408037103,1773064243859,-1325.75653448,0.000198,30]
[408037104,1773064243868,-2000.0,0.000198,2]
[408037105,1773064243877,-2000.0,0.000198,2]
[408037106,1773064243887,-600.0,0.000198,7]
[408037107,1773064243897,-300.0,0.000198,7]
[408037108,1773064243905,-2000.0,0.000198,2]
[408037109,1773064243915,-6221.40746089,0.0001981,2]
[408037110,1773064243924,-250.0,0.0001981,2]
[408037111,1773064243933,-2074.37954879,0.00019815,2]
[408037112,1773064243943,-2152.66118846,0.00019822,2]
[408037113,1773064243952,-250.0,0.00019824,2]
[408037114,1773064243961,-4782.755,0.00019824,2]
[408037115,1773064243970,-219.989,0.00019824,2]
[408037116,1773064243979,-150.0,0.00019826,2]
[408037117,1773064243988,-150.0,0.00019826,2]
[408037118,1773064243999,-150.0,0.00019826,2]
[408037119,1773064244008,-150.0,0.00019826,2]
[408037120,1773064244017,-150.0,0.00019826,2]
[408037121,1773064244027,-150.0,0.00019826,2]
[408037122,1773064244036,-230.0,0.00019826,2]
[408037123,1773064244045,-2166.62903121,0.00019827,2]
[408037124,1773064244054,-500.0,0.00019835,2]
[408037125,1773064244063,-160.02329546,0.00019836,2]
[408037126,1773064244072,-568.0,0.00019837,2]
[408037127,1773064244081,-500.0,0.00019837,2]
[408037128,1773064244091,-500.0,0.00019837,2]
[408037129,1773064244100,-1079.0,0.00019837,2]
[408037130,1773064244109,-473.0,0.00019837,2]
[408037131,1773064244122,-500.0,0.00019837,2]
[408037132,1773064244135,-500.0,0.00019837,2]
[408037133,1773064244143,-479.0,0.00019837,2]
[408037134,1773064244152,-500.0,0.00019837,2]
[408037135,1773064244161,-1198.0,0.00019837,2]
[408037136,1773064244170,-500.0,0.00019837,2]
[408037137,1773064244179,-208.71326845,0.00019837,2]
[408037138,1773064244189,-200.0,0.0001984,2]
[408037139,1773064244198,-500.0,0.00019847,2]
[408037140,1773064244207,-568.0,0.00019848,2]
[408037141,1773064244216,-500.0,0.00019848,2]
[408037142,1773064244226,-1613.0,0.00019852,2]
[408037143,1773064244235,-2074.37954879,0.00019858,2]
[408037144,1773064244245,-1613.0,0.00019865,2]
[408037145,1773064244256,-204.0,0.00019872,30]
[408037146,1773064244265,-250.0,0.00019875,2]
[408037147,1773064244274,-4870.5413,0.00019888,2]
[408037148,1773064244284,-1000.0,0.00019888,2]
[408037149,1773064244294,-25000.0,0.00019891,3]
[408037150,1773064244303,-25000.0,0.00019891,3]
[408037151,1773064244314,-568.0,0.00019892,2]
[408037152,1773064244324,-460.0,0.00019892,2]
[408037153,1773064244335,-500.0,0.00019892,2]
[408037154,1773064244346,-473.0,0.00019892,2]
[408037155,1773064244356,-1079.0,0.00019892,2]
[408037156,1773064244366,-500.0,0.00019892,2]
[408037157,1773064244375,-500.0,0.00019892,2]
[408037158,1773064244385,-479.0,0.00019892,2]
[408037159,1773064244396,-500.0,0.00019892,2]
[408037160,1773064244405,-1198.0,0.00019892,2]
[408037161,1773064244415,-500.0,0.00019892,2]
[408037162,1773064244426,-151.0,0.00019898,2]
[408037163,1773064244436,-2000.0,0.000199,2]
[408037164,1773064244446,-5000.0,0.000199,2]
[408037165,1773064244455,-2000.0,0.000199,2]
[408037166,1773064244464,-10000.0,0.000199,2]
[408037167,1773064244474,-11851.47467781,0.000199,3]
[408037168,1773064245302,-690.78924,0.000199,3]
[408037169,1773064245352,-12457.73608219,0.000199,3]
[408037170,1773064245362,-832.91727737,0.000199,2]
[408037171,1773064245372,-2000.0,0.000199,2]
[408037172,1773064245384,-484.31397246,0.000199,2]
[408037173,1773064245394,-2937.97160987,0.000199,2]
[408037174,1773064245405,-25000.0,0.000199,3]
[408037175,1773064245415,-2166.62903121,0.000199,2]
[408037176,1773064245425,-250.0,0.000199,2]
[408037177,1773064245437,-1255.0,0.000199,7]
[408037178,1773064245449,-2152.66118846,0.000199,2]
[408037180,1773064245459,-2074.37954879,0.000199,2]
[408037181,1773064245469,-5329.21163729,0.000199,2]
[408037182,1773064245479,-8531.31265296,0.000199,2]
[408037183,1773064245489,-4834.85672202,0.000199,2]
[408037184,1773064245499,-189.1597078,0.000199,2]
[408037185,1773064245509,-900.0,0.000199,7]
[408037187,1773064245518,-14296.20661548,0.000199,2]
[408037188,1773064245528,-4021.0,0.000199,2]
[408037189,1773064245538,-3007.0,0.000199,2]
[408037192,1773064245820,-463.68,0.00019903,2]
[408037193,1773064245831,-568.0,0.00019903,2]
[408037194,1773064245840,-500.0,0.00019903,2]
[408037195,1773064245851,-1000.0,0.00019905,2]
[408037196,1773064245861,-1000.0,0.00019905,2]
[408037197,1773064245871,-1000.0,0.00019905,2]
[408037198,1773064245880,-1000.0,0.00019905,2]
[408037199,1773064245889,-1000.0,0.00019905,2]
[408037200,1773064245899,-1000.0,0.00019905,2]
[408037201,1773064245910,-1000.0,0.00019905,2]
[408037202,1773064245921,-203.0,0.00019912,2]
[408037203,1773064245931,-250.0,0.00019915,2]
[408037204,1773064245941,-331.0,0.00019916,2]
[408037205,1773064245951,-153.45374546,0.00019921,2]
[408037206,1773064245961,-614.0,0.00019932,2]
[408037207,1773064245971,-150.0,0.00019932,2]
[408037208,1773064245980,-150.0,0.00019932,2]
[408037209,1773064245989,-150.0,0.00019932,2]
[408037210,1773064246001,-242.0,0.00019932,2]
[408037211,1773064246010,-568.0,0.00019946,2]
[408037212,1773064246020,-500.0,0.00019946,2]
[408037213,1773064246031,-1079.0,0.00019946,2]
[408037214,1773064246040,-473.0,0.00019946,2]
[408037215,1773064246050,-500.0,0.00019946,2]
[408037216,1773064246059,-507.07135591,0.00019946,2]
[408037217,1773064246069,-479.0,0.00019946,2]
[408037220,1773064246078,-501.82767376,0.00019946,2]
[408037223,1773064246088,-1198.0,0.00019946,2]
[408037225,1773064246097,-500.0,0.00019946,2]
[408037227,1773064246106,-187.78006525,0.00019949,2]
[408037229,1773064246115,-338.49273277,0.00019949,2]
[408037231,1773064246125,-717.04230551,0.00019949,2]
[408037233,1773064246135,-282.71673119,0.00019949,2]
[408037235,1773064246144,-568.0,0.00019958,2]
[408037237,1773064246153,-500.0,0.00019958,2]
[408037239,1773064246162,-250.0,0.00019958,2]
[408037241,1773064246172,-3664.0,0.00019973,2]
[408037243,1773064246181,-501.46144244,0.00019973,2]
[408037245,1773064246190,-163.7437981,0.00019973,2]
[408037247,1773064246200,-500.0,0.00019973,2]
[408037249,1773064246209,-500.0,0.00019973,2]
[408037251,1773064246218,-500.56489866,0.00019973,2]
[408037252,1773064246227,-500.0,0.00019973,2]
[408037253,1773064246236,-250.0,0.00019973,2]
[408037254,1773064246246,-432.0,0.00019974,2]
[408037255,1773064246256,-500.0,0.00019987,2]
[408037256,1773064246265,-151.0,0.00019987,2]
[408037257,1773064246274,-619.0,0.0001999,2]
[408037258,1773064246283,-1042.0,0.0001999,2]
[408037259,1773064246292,-1342.0,0.0001999,2]
[408037260,1773064246301,-3505.0,0.0001999,2]
[408037261,1773064246310,-150.0,0.0001999,2]
[408037262,1773064246320,-1279.0,0.0001999,2]
[408037263,1773064246329,-922.0,0.0001999,2]
[408037264,1773064246339,-3749.0,0.0001999,2]
[408037265,1773064246349,-163.38707578,0.0001999,2]
[408037266,1773064246358,-5994.0,0.0001999,2]
[408037267,1773064246368,-414.0,0.0001999,2]
[408037268,1773064246378,-151.0,0.00019997,2]
[408037269,1773064246387,-151.0,0.00019997,2]
[408037270,1773064246397,-300.0,0.00019999,2]
[408037271,1773064246407,-300.0,0.00019999,2]
[408037272,1773064246416,-666.0,0.00019999,2]
[408037273,1773064246426,-300.0,0.00019999,2]
[408037274,1773064246435,-500.0,0.00019999,2]
[408037275,1773064246445,-500.0,0.00019999,2]
[408037276,1773064246455,-500.0,0.00019999,2]
[408037277,1773064246464,-500.0,0.00019999,2]
[408037278,1773064246474,-500.0,0.00019999,2]
[408037279,1773064246484,-500.0,0.00019999,2]
[408037280,1773064246493,-500.0,0.00019999,2]
[408037281,1773064246503,-350.0,0.00019999,2]
[408037282,1773064246513,-150.0,0.00019999,2]
[408037283,1773064246522,-500.0,0.00019999,2]
[408037285,1773064246532,-500.0,0.00019999,2]
[408037286,1773064246541,-300.0,0.00019999,2]
[408037287,1773064246550,-500.0,0.00019999,2]
[408037288,1773064246559,-210.95556175,0.00019999,2]
[408037289,1773064246568,-545.52551133,0.00019999,2]
[408037290,1773064246577,-500.0,0.00019999,2]
[408037291,1773064246587,-500.0,0.00019999,2]
[408037292,1773064246596,-500.0,0.00019999,2]
[408037293,1773064246606,-500.0,0.00019999,2]
[408037294,1773064246615,-495.0176122,0.00019999,2]
[408037295,1773064246624,-275.10747811,0.00019999,2]
[408037296,1773064246633,-150.0,0.00019999,2]
[408037297,1773064246643,-156.95046837,0.00019999,2]
[408037298,1773064246652,-920198.99907399,0.0002,2]
[408037299,1773064246688,-2279.10000001,0.0002,2]
[408037300,1773064246711,-2835420.52192882,0.0002,2]
[408037301,1773064246724,-488.52303721,0.0002,2]
[408037302,1773064246735,-34000.5,0.0002,2]
[408037303,1773064246747,-1601.7312321,0.0002,2]
[408037304,1773064246758,-3957.46889993,0.0002,2]
[408037305,1773064247149,-313.35131726,0.00019,2]
[408037306,1773064247175,-497.09775474,0.00019,2]
[408037307,1773064247185,-1000.0,0.00019178,2]
[408037308,1773064247194,-1000.0,0.00019452,2]
[408037309,1773064247204,-1000.0,0.00019726,2]
[408037310,1773064247214,-1052.56953457,0.0002,2]
[408037311,1773064247245,-11983.07918406,0.0002,2]
[408037312,1773064247396,-253.3625,0.0002,2]
[408037313,1773064247407,-479.217636,0.0002,2]
[408037314,1773064247457,-66823.62412227,0.0002,2]
[408037315,1773064247585,5000.01,0.00013087,2]
[408037316,1773064247607,4999.99,0.00013087,2]
[408037317,1773064257347,0.02,0.00013087,2]
[408037318,1773064257370,5000.01,0.00013087,2]
[408037319,1773064257392,4999.97,0.00013087,2]
[408037320,1773064267757,10000.0,0.00013087,2]
[408037321,1773064276328,0.01,0.00013087,2]
[408037322,1773064276398,9999.99,0.00013087,2]
[408037324,1773064286202,0.02,0.00013087,2]
[408037325,1773064286223,9999.98,0.00013087,2]
[408037327,1773064306403,0.03,0.00013087,2]
[408037328,1773064306425,833.82,0.00013087,2]
[408037329,1773064342644,500.0,8.087e-05,2]
[408037331,1773064412056,193.98,9.361e-05,2]
[408037332,1773064572756,501.55068,0.0002,120]
[408037333,1773064583895,500.0,0.00013087,2]
[408037334,1773064643092,500.0,8.087e-05,2]
[408037338,1773064839662,10000.0,0.0002,120]
[408037339,1773064847834,10000.0,0.0002,120]
[408037340,1773064858846,10000.0,0.0002,120]
[408037342,1773064872655,2488.35,0.0002,120]
[408037343,1773065199399,-169.83,0.00014,2]
[408037355,1773065431395,-192.0,0.000146,2]
[408037356,1773065431404,-478.50807902,0.000149,3]
[408037357,1773065431415,-5054.49192098,0.000149,3]
[408037358,1773065431424,-500.0,0.00015,30]
[408037359,1773065431434,-500.0,0.00015,30]
[408037360,1773065431443,-1939.31,0.00015103,2]
[408037361,1773065431455,-5533.0,0.000153,5]
[408037362,1773065431464,-169.83,0.0001556,2]
[408037363,1773065431474,-250.0,0.0001595,2]
[408037364,1773065431484,-345.08223106,0.00016084,2]
[408037365,1773065431493,-300.0,0.0001617,2]
[408037366,1773065431502,-5000.00925923,0.000162,5]
[408037367,1773065431512,-250.0,0.0001628,2]
[408037368,1773065431521,-1500.0,0.0001641,2]
[408037369,1773065431531,-722.0,0.00016473,2]
[408037370,1773065431540,-289.41103785,0.000165,2]
[408037371,1773065431550,-195.0,0.000165,2]
[408037372,1773065431560,-179.49839145,0.000165,2]
[408037374,1773065431569,-2500.0,0.000165,2]
[408037375,1773065431578,-1234.16876893,0.000165,2]
[408037377,1773065431588,-166.66,0.00016742,2]
[408037378,1773065431598,-3898.72871203,0.000169,2]
[408037379,1773065431607,-500.0,0.0001699,2]
[408037380,1773065431616,-500.0,0.0001699,2]
[408037381,1773065431626,-500.0,0.0001699,2]
[408037382,1773065431635,-500.0,0.0001699,2]
[408037383,1773065431645,-500.0,0.0001699,2]
[408037384,1773065431655,-500.0,0.0001699,2]
[408037385,1773065431664,-500.0,0.0001699,2]
[408037386,1773065431673,-500.0,0.0001699,2]
[408037387,1773065431682,-200.0,0.0001699,2]
[408037388,1773065431691,-500.0,0.0001699,2]
[408037389,1773065431703,-500.0,0.0001699,2]
[408037390,1773065431713,-500.0,0.0001699,2]
[408037391,1773065431722,-500.0,0.0001699,2]
[408037392,1773065431732,-151.0,0.0001699,2]
[408037393,1773065431742,-500.0,0.0001699,2]
[408037394,1773065431751,-500.0,0.0001699,2]
[408037395,1773065431761,-151.0,0.0001699,2]
[408037396,1773065431770,-151.0,0.0001699,2]
[408037397,1773065431780,-500.0,0.0001699,2]
[408037398,1773065431789,-151.0,0.0001699,2]
[408037399,1773065431798,-500.0,0.0001699,2]
[408037400,1773065431807,-151.0,0.0001699,2]
[408037401,1773065431817,-500.0,0.0001699,2]
[408037402,1773065431826,-151.0,0.0001699,2]
[408037403,1773065431836,-151.0,0.0001699,2]
[408037404,1773065431845,-500.0,0.0001699,2]
[408037405,1773065431855,-151.0,0.0001699,2]
[408037406,1773065431864,-619.71610125,0.0001699,2]
[408037407,1773065431874,-151.0,0.0001699,2]
[408037408,1773065431883,-151.0,0.0001699,2]
[408037409,1773065431892,-151.0,0.0001699,2]
[408037410,1773065431902,-151.0,0.0001699,2]
[408037411,1773065431913,-151.0,0.0001699,2]
[408037412,1773065431922,-151.0,0.0001699,2]
[408037413,1773065431941,-151.0,0.0001699,2]
[408037414,1773065431958,-151.0,0.0001699,2]
[408037415,1773065431976,-151.0,0.0001699,2]
[408037416,1773065431995,-151.0,0.0001699,2]
[408037417,1773065432011,-151.0,0.0001699,2]
[408037418,1773065432029,-151.0,0.0001699,2]
[408037419,1773065432048,-116302.69886878,0.00017,2]
[408037420,1773065432069,-501.0,0.00017,2]
[408037421,1773065432088,-166.66,0.00017095,2]
[408037422,1773065432106,-500.0,0.00017096,2]
[408037423,1773065432124,-62557.60144444,0.000171,2]
[408037424,1773065432140,-169.83,0.0001712,2]
[408037425,1773065432159,-150.0,0.00017176,2]
[408037426,1773065432171,-3898.72871201,0.00017233,2]
[408037427,1773065432189,-397.2477485,0.00017342,2]
[408037428,1773065432205,-511.0,0.00017342,2]
[408037429,1773065432225,-166.66,0.00017447,2]
[408037430,1773065432240,-346.80821095,0.00017522,2]
[408037431,1773065432256,-500.0,0.00017522,2]
[408037432,1773065432271,-329.99137082,0.00017522,2]
[408037433,1773065432286,-500.0,0.00017522,2]
[408037434,1773065432300,-500.0,0.00017522,2]
[408037435,1773065432314,-500.0,0.00017522,2]
[408037436,1773065432330,-500.0,0.00017522,2]
[408037437,1773065432346,-500.0,0.00017522,2]
[408037438,1773065432361,-500.0,0.00017522,2]
[408037439,1773065432378,-500.0,0.00017522,2]
[408037440,1773065432393,-500.0,0.00017522,2]
[408037441,1773065432408,-500.0,0.00017522,2]
[408037442,1773065432425,-500.0,0.00017522,2]
[408037443,1773065432441,-500.0,0.00017522,2]
[408037444,1773065432458,-633.1954825,0.00017522,2]
[408037445,1773065432473,-500.0,0.00017522,2]
[408037446,1773065432488,-501.2232109,0.00017522,2]
[408037447,1773065432504,-500.0,0.00017522,2]
[408037448,1773065432518,-500.0,0.00017522,2]
[408037449,1773065432533,-500.0,0.00017522,2]
[408037450,1773065432549,-500.0,0.00017522,2]
[408037451,1773065432563,-494.12311407,0.00017522,2]
[408037452,1773065432577,-500.0,0.00017522,2]
[408037453,1773065432592,-500.0,0.00017522,2]
[408037454,1773065432608,-500.0,0.00017522,2]
[408037455,1773065432622,-500.0,0.00017522,2]
[408037456,1773065432636,-500.0,0.00017522,2]
[408037457,1773065432654,-500.0,0.00017522,2]
[408037458,1773065432670,-500.0,0.00017522,2]
[408037459,1773065432685,-500.0,0.00017522,2]
[408037460,1773065432700,-500.0,0.00017522,2]
[408037461,1773065432718,-252.55950336,0.00017522,2]
[408037462,1773065432734,-500.0,0.00017522,2]
[408037463,1773065432750,-500.0,0.00017522,2]
[408037464,1773065432766,-500.0,0.00017522,2]
[408037465,1773065432781,-280.74070851,0.00017522,2]
[408037466,1773065434353,-313.87403262,0.00017522,2]
[408037467,1773065434363,-500.0,0.00017522,2]
[408037468,1773065434374,-500.0,0.00017522,2]
[408037469,1773065434384,-500.0,0.00017522,2]
[408037470,1773065434394,-500.0,0.00017522,2]
[408037471,1773065434404,-500.0,0.00017522,2]
[408037472,1773065434414,-500.0,0.00017522,2]
[408037473,1773065434424,-500.0,0.00017522,2]
[408037474,1773065434433,-261.66968331,0.00017522,2]
[408037475,1773065434442,-514.15924955,0.00017522,2]
[408037476,1773065434452,-505.89423547,0.00017522,2]
[408037477,1773065434463,-500.0,0.00017522,2]
[408037478,1773065434473,-600.37868643,0.00017522,2]
[408037479,1773065434482,-500.0,0.00017522,2]
[408037480,1773065434492,-500.0,0.00017522,2]
[408037481,1773065434501,-500.0,0.00017522,2]
[408037482,1773065434511,-500.0,0.00017522,2]
[408037483,1773065434520,-6197.26852664,0.00017523,2]
[408037486,1773065437555,-309.76675533,0.00017523,2]
[408037492,1773065440000,-65961.55441803,0.00017523,2]
[408037493,1773065440010,-3898.72871201,0.00017567,2]
[408037494,1773065440019,-269.08264861,0.00017658,2]
[408037495,1773065440028,-166.66,0.000178,2]
[408037496,1773065440037,-1455.3,0.00017858,2]
[408037497,1773065440295,-3898.72871201,0.000179,2]
[408037498,1773065440327,-269.08264855,0.00017978,2]
[408037499,1773065440337,-225.0,0.00018079,2]
[408037500,1773065440346,-166.66,0.00018152,2]
[408037501,1773065440356,-10760.06,0.00018168,2]
[408037502,1773065440365,-3898.72871201,0.00018233,2]
[408037503,1773065440374,-269.08264855,0.00018299,2]
[408037504,1773065440383,-500.0,0.00018356,7]
[408037505,1773065440393,-500.0,0.00018367,2]
[408037506,1773065440402,-166.66,0.00018505,2]
[408037507,1773065440411,-3898.72871201,0.00018567,2]
[408037508,1773065440420,-269.08264855,0.00018619,2]
[408037509,1773065440429,-32927.6463,0.00018622,2]
[408037510,1773065440438,-169.83,0.0001868,2]
[408037511,1773065440448,-193.98,0.00018722,2]
[408037512,1773065440457,-113161.49,0.00018722,2]
[408037513,1773065440467,-1838.02440248,0.00018736,2]
[408037514,1773065440477,-500.0,0.00018773,2]
[408037515,1773065440485,-500.0,0.00018773,2]
[408037516,1773065440494,-500.0,0.00018773,2]
[408037518,1773065440503,-501.46144244,0.00018773,2]
[408037520,1773065440512,-163.7437981,0.00018773,2]
[408037522,1773065440521,-500.0,0.00018773,2]
[408037523,1773065440530,-405.86,0.00018836,2]
[408037524,1773065440539,-8000.0,0.00018858,2]
[408037525,1773065440548,-500.0,0.00018858,2]
[408037526,1773065440556,-846.14658564,0.00018858,2]
[408037527,1773065440565,-8000.0,0.00018858,2]
[408037528,1773065440574,-2904.77585634,0.00018858,2]
[408037529,1773065440584,-500.0,0.00018858,2]
[408037530,1773065440594,-1500.0,0.00018858,2]
[408037531,1773065440603,-1500.0,0.00018858,2]
[408037532,1773065440613,-1000.0,0.00018858,2]
[408037533,1773065440622,-250.0,0.00018858,2]
[408037534,1773065440631,-250.0,0.00018858,2]
[408037535,1773065440640,-250.0,0.00018858,2]
[408037536,1773065440650,-250.0,0.00018858,2]
[408037537,1773065440660,-261.64199575,0.00018858,2]
[408037538,1773065440669,-3000.0,0.00018858,2]
[408037539,1773065440678,-2604.868993,0.00018858,2]
[408037540,1773065440687,-578.20924308,0.00018858,2]
[408037541,1773065440697,-174.61919141,0.00018858,2]
[408037542,1773065440706,-344.17110755,0.00018858,2]
[408037543,1773065440717,-1000.0,0.00018858,2]
[408037544,1773065440727,-1036.15189384,0.00018858,2]
[408037545,1773065440736,-1500.0,0.00018858,2]
[408037546,1773065440746,-1500.0,0.00018858,2]
[408037547,1773065440755,-1500.0,0.00018858,2]
[408037548,1773065440764,-1500.0,0.00018858,2]
[408037549,1773065440773,-1500.0,0.00018858,2]
[408037550,1773065440783,-717.04230551,0.00018858,2]
[408037551,1773065440792,-1500.0,0.00018858,2]
[408037552,1773065440801,-1500.0,0.00018858,2]
[408037553,1773065440810,-1500.0,0.00018858,2]
[408037554,1773065440820,-1500.0,0.00018858,2]
[408037555,1773065440830,-1088.53467861,0.00018858,2]
[408037556,1773065440839,-262.90206542,0.00018858,2]
[408037557,1773065440849,-290.26104003,0.00018858,2]
[408037558,1773065440858,-1838.02440239,0.00018865,2]
[408037559,1773065440868,-3898.72871201,0.000189,2]
[408037560,1773065440878,-150.0,0.00018911,2]
[408037561,1773065440887,-2436.19,0.00018925,2]
[408037562,1773065440897,-269.08264855,0.00018939,2]
[408037563,1773065440906,-828.0,0.00018961,2]
[408037564,1773065440916,-828.0,0.00018972,2]
[408037565,1773065440925,-1838.02440239,0.00018995,2]
[408037566,1773065440934,-501.0,0.00019032,3]
[408037567,1773065440943,-847.0,0.0001904,2]
[408037568,1773065440952,-1838.02440239,0.00019124,2]
[408037569,1773065440962,-5267.18445,0.000192,30]
[408037570,1773065440971,-2000.0,0.000192,2]
[408037571,1773065440981,-177.80366162,0.00019205,2]
[408037572,1773065440990,-3898.72871201,0.00019233,2]
[408037573,1773065440999,-1168.32,0.00019235,2]
[408037574,1773065441009,-1000.0,0.00019239,2]
[408037575,1773065441018,-1838.02440239,0.00019253,2]
[408037576,1773065441027,-269.08264855,0.00019259,2]
[408037577,1773065441037,-2368.04,0.00019298,2]
[408037578,1773065441047,-500.0,0.00019315,2]
[408037579,1773065441056,-236.58025834,0.00019317,2]
[408037580,1773065441066,-1000.0,0.00019321,2]
[408037581,1773065441076,-1001.47423274,0.00019321,2]
[408037582,1773065441086,-242.17,0.00019339,2]
[408037583,1773065441096,-299.99,0.00019339,7]
[408037584,1773065441106,-9999.99,0.00019339,2]
[408037585,1773065441116,-9999.99,0.00019339,2]
[408037586,1773065441130,-828.0,0.00019343,2]
[408037587,1773065441142,-2806.0,0.0001936,2]
[408037588,1773065441151,-2057.0,0.0001936,2]
[408037589,1773065441162,-1838.02440239,0.00019383,2]
[408037590,1773065441171,-157.72017223,0.00019391,2]
[408037591,1773065441181,-2436.19,0.00019398,2]
[408037592,1773065441191,-5994.0,0.000194,2]
[408037593,1773065441201,-2461.0,0.000194,2]
[408037594,1773065441210,-414.0,0.000194,2]
[408037595,1773065441220,-181.08010149,0.00019406,2]
[408037596,1773065441229,-272.62944185,0.00019406,2]